[Event "Titled Tuesday Blitz March 14 Late 2023"]
[White "Johannesson, Ingvar Thor"]
[Black "Pakleza, Zbigniew"]
[WhiteFideId "2301490"]
[BlackFideId "1119290"]
[WhiteElo "2360"]
[BlackElo "2410"]
[Result "1-0"]
[Round "08"]
[TimeControl "180+2"]
[Date "2023.03.14"]
[WhiteClock "0:00:07"]
[BlackClock "0:00:02"]

1. c4 {[%clk 0:01:59]}  d6 {[%clk 0:02:58]} 2. g3 {[%clk 0:01:59]}  e5 {[%clk 0:02:58]} 3. Bg2 {[%clk 0:02:00]}  g6 {[%clk 0:02:59]} 4. Nc3 {[%clk 0:02:00]}  Bg7 {[%clk 0:02:59]} 5. Nf3 {[%clk 0:02:01]}  Ne7 {[%clk 0:02:59]} 6. O-O {[%clk 0:02:02]}  O-O {[%clk 0:02:59]} 7. d3 {[%clk 0:02:02]}  f5 {[%clk 0:02:58]} 8. Bg5 {[%clk 0:02:02]}  h6 {[%clk 0:02:58]} 9. Bxe7 {[%clk 0:02:02]}  Qxe7 {[%clk 0:02:59]} 10. Rb1 {[%clk 0:02:03]}  a5 {[%clk 0:02:59]} 11. a3 {[%clk 0:02:03]}  c6 {[%clk 0:02:58]} 12. Nd2 {[%clk 0:02:02]}  Be6 {[%clk 0:02:54]} 13. b4 {[%clk 0:02:01]}  axb4 {[%clk 0:02:51]} 14. axb4 {[%clk 0:02:02]}  e4 {[%clk 0:02:40]} 15. Qb3 {[%clk 0:02:01]}  d5 {[%clk 0:01:54]} 16. cxd5 {[%clk 0:01:49]}  cxd5 {[%clk 0:01:55]} 17. Nxd5 {[%clk 0:01:48]}  Qf7 {[%clk 0:01:50]} 18. dxe4 {[%clk 0:01:46]}  fxe4 {[%clk 0:01:51]} 19. Bxe4 {[%clk 0:01:33]}  Rd8 {[%clk 0:01:37]} 20. Qc2 {[%clk 0:01:28]}  Bxd5 {[%clk 0:01:31]} 21. Bxg6 {[%clk 0:01:28]}  Qe7 {[%clk 0:01:20]} 22. Nc4 {[%clk 0:01:23]}  Nd7 {[%clk 0:01:02]} 23. Rfd1 {[%clk 0:01:14]}  Be6 {[%clk 0:01:02]} 24. Nd6 {[%clk 0:01:11]}  Ne5 {[%clk 0:00:55]} 25. Nf5 {[%clk 0:01:06]}  Qf6 {[%clk 0:00:43]} 26. Nh4 {[%clk 0:00:58]}  Rf8 {[%clk 0:00:25]} 27. Bh7+ {[%clk 0:00:54]}  Kh8 {[%clk 0:00:22]} 28. f4 {[%clk 0:00:55]}  Ra2 {[%clk 0:00:19]} 29. Qe4 {[%clk 0:00:50]}  Bc8 {[%clk 0:00:11]} 30. fxe5 {[%clk 0:00:43]}  Qf2+ {[%clk 0:00:12]} 31. Kh1 {[%clk 0:00:43]}  Rxe2 {[%clk 0:00:09]} 32. Ng6+ {[%clk 0:00:33]}  Kxh7 {[%clk 0:00:10]} 33. Nxf8+ {[%clk 0:00:29]}  Kg8 {[%clk 0:00:11]} 34. Qh7+ {[%clk 0:00:30]}  Kxf8 {[%clk 0:00:11]} 35. Rf1 {[%clk 0:00:31]}  Bh3 {[%clk 0:00:06]} 36. Rxf2+ {[%clk 0:00:28]}  Rxf2 {[%clk 0:00:07]} 37. Qe4 {[%clk 0:00:26]}  Be6 {[%clk 0:00:02]} 38. Qxb7 {[%clk 0:00:19]}  Rd2 {[%clk 0:00:02]} 39. Qb8+ {[%clk 0:00:14]}  Kf7 {[%clk 0:00:02]} 40. Rf1+ {[%clk 0:00:14]}  Ke7 {[%clk 0:00:02]} 41. Qa7+ {[%clk 0:00:13]}  Bd7 {[%clk 0:00:02]} 42. Qc5+ {[%clk 0:00:13]}  Ke8 {[%clk 0:00:02]} 43. b5 {[%clk 0:00:10]}  Re2 {[%clk 0:00:01]} 44. b6 {[%clk 0:00:07]}  Bxe5 {[%clk 0:00:02]} 45. b7 {[%clk 0:00:06]}  Bb8 {[%clk 0:00:02]} 46. Rf8# {[%clk 0:00:07]} 1-0


[Site "https://www.chess.com"]

[Event "Titled Tuesday Blitz March 14 Late 2023"]
[White "Matinian, Nikita"]
[Black "Estrada Nieto, Julian"]
[WhiteFideId "24129100"]
[BlackFideId "5101018"]
[WhiteElo "2422"]
[BlackElo "2176"]
[Result "1-0"]
[Round "08"]
[TimeControl "180+2"]
[Date "2023.03.14"]
[WhiteClock "0:00:04"]
[BlackClock "0:00:02"]

1. e4 {[%clk 0:02:57]}  e5 {[%clk 0:03:00]} 2. Nf3 {[%clk 0:02:57]}  Nc6 {[%clk 0:03:00]} 3. Bb5 {[%clk 0:02:58]}  a6 {[%clk 0:03:00]} 4. Ba4 {[%clk 0:02:58]}  Nf6 {[%clk 0:03:00]} 5. O-O {[%clk 0:02:59]}  Be7 {[%clk 0:03:01]} 6. d3 {[%clk 0:02:59]}  b5 {[%clk 0:02:59]} 7. Bb3 {[%clk 0:02:58]}  d6 {[%clk 0:02:59]} 8. a3 {[%clk 0:02:58]}  O-O {[%clk 0:02:59]} 9. Nc3 {[%clk 0:02:58]}  Na5 {[%clk 0:02:50]} 10. Ba2 {[%clk 0:02:57]}  Be6 {[%clk 0:02:43]} 11. b4 {[%clk 0:02:57]}  Bxa2 {[%clk 0:02:41]} 12. Nxa2 {[%clk 0:02:58]}  Nc6 {[%clk 0:02:37]} 13. c4 {[%clk 0:02:58]}  Qd7 {[%clk 0:02:27]} 14. Nc3 {[%clk 0:02:55]}  Rab8 {[%clk 0:02:06]} 15. h3 {[%clk 0:02:48]}  h6 {[%clk 0:02:02]} 16. Be3 {[%clk 0:02:48]}  Nd8 {[%clk 0:01:50]} 17. Qc2 {[%clk 0:02:38]}  Ne6 {[%clk 0:01:49]} 18. Nd5 {[%clk 0:02:37]}  c6 {[%clk 0:01:43]} 19. Nxe7+ {[%clk 0:02:35]}  Qxe7 {[%clk 0:01:43]} 20. a4 {[%clk 0:02:26]}  Qb7 {[%clk 0:01:37]} 21. cxb5 {[%clk 0:02:04]}  cxb5 {[%clk 0:01:36]} 22. a5 {[%clk 0:02:05]}  Rbc8 {[%clk 0:01:31]} 23. Qb2 {[%clk 0:02:03]}  Nh5 {[%clk 0:01:28]} 24. Kh2 {[%clk 0:01:33]}  Nhf4 {[%clk 0:01:27]} 25. Qd2 {[%clk 0:01:32]}  f5 {[%clk 0:01:24]} 26. Rfc1 {[%clk 0:01:21]}  Nxg2 {[%clk 0:00:42]} 27. Kxg2 {[%clk 0:01:21]}  f4 {[%clk 0:00:43]} 28. Bb6 {[%clk 0:01:19]}  Qe7 {[%clk 0:00:29]} 29. Qa2 {[%clk 0:01:15]}  Kh7 {[%clk 0:00:29]} 30. Qd5 {[%clk 0:01:10]}  Ng5 {[%clk 0:00:25]} 31. Ng1 {[%clk 0:00:34]}  Qd7 {[%clk 0:00:19]} 32. f3 {[%clk 0:00:32]}  Rf6 {[%clk 0:00:16]} 33. h4 {[%clk 0:00:20]}  Nf7 {[%clk 0:00:15]} 34. h5 {[%clk 0:00:18]}  Ng5 {[%clk 0:00:14]} 35. Bf2 {[%clk 0:00:14]}  Qe8 {[%clk 0:00:11]} 36. Rxc8 {[%clk 0:00:12]}  Qxc8 {[%clk 0:00:11]} 37. d4 {[%clk 0:00:10]}  Nf7 {[%clk 0:00:09]} 38. Bh4 {[%clk 0:00:06]}  Re6 {[%clk 0:00:08]} 39. Bf2 {[%clk 0:00:06]}  Rf6 {[%clk 0:00:08]} 40. Rd1 {[%clk 0:00:06]}  Qc2 {[%clk 0:00:07]} 41. dxe5 {[%clk 0:00:06]}  dxe5 {[%clk 0:00:07]} 42. Rd2 {[%clk 0:00:06]}  Qc1 {[%clk 0:00:06]} 43. Qd7 {[%clk 0:00:06]}  Ng5 {[%clk 0:00:05]} 44. Bc5 {[%clk 0:00:04]}  Qc3 {[%clk 0:00:04]} 45. Be7 {[%clk 0:00:04]}  Rc6 {[%clk 0:00:03]} 46. Bxg5 {[%clk 0:00:03]}  hxg5 {[%clk 0:00:02]} 47. Nh3 {[%clk 0:00:03]}  Qe3 {[%clk 0:00:02]} 48. Nxg5+ {[%clk 0:00:03]}  Kh6 {[%clk 0:00:02]} 49. Nf7+ {[%clk 0:00:04]}  Kxh5 {[%clk 0:00:02]} 50. Qg4# {[%clk 0:00:04]} 1-0


[Site "https://www.chess.com"]

[Event "Titled Tuesday Blitz March 14 Late 2023"]
[White "Roebers, Eline"]
[Black "Papasimakopoulos, Alexandros"]
[WhiteFideId "1058401"]
[BlackFideId "4244125"]
[WhiteElo "2542"]
[BlackElo "2359"]
[Result "0-1"]
[Round "08"]
[TimeControl "180+2"]
[Date "2023.03.14"]
[WhiteClock "0:00:53"]
[BlackClock "0:00:41"]

1. e4 {[%clk 0:03:00]}  e6 {[%clk 0:03:00]} 2. d4 {[%clk 0:03:00]}  d5 {[%clk 0:02:56]} 3. Nc3 {[%clk 0:03:00]}  Bb4 {[%clk 0:02:56]} 4. e5 {[%clk 0:03:01]}  c5 {[%clk 0:02:54]} 5. a3 {[%clk 0:03:01]}  Bxc3+ {[%clk 0:02:54]} 6. bxc3 {[%clk 0:03:02]}  Nc6 {[%clk 0:02:49]} 7. a4 {[%clk 0:02:53]}  Qa5 {[%clk 0:02:49]} 8. Bd2 {[%clk 0:02:51]}  Nge7 {[%clk 0:02:48]} 9. Nf3 {[%clk 0:02:46]}  Bd7 {[%clk 0:02:46]} 10. Bb5 {[%clk 0:02:43]}  a6 {[%clk 0:02:32]} 11. Be2 {[%clk 0:02:40]}  c4 {[%clk 0:02:27]} 12. O-O {[%clk 0:02:39]}  f6 {[%clk 0:02:26]} 13. Qb1 {[%clk 0:02:28]}  fxe5 {[%clk 0:02:16]} 14. dxe5 {[%clk 0:02:25]}  Qc7 {[%clk 0:02:12]} 15. Bf4 {[%clk 0:02:22]}  O-O {[%clk 0:02:01]} 16. Be3 {[%clk 0:02:07]}  Nxe5 {[%clk 0:01:54]} 17. Nxe5 {[%clk 0:02:08]}  Qxe5 {[%clk 0:01:53]} 18. Qxb7 {[%clk 0:02:06]}  Qd6 {[%clk 0:01:46]} 19. Qb1 {[%clk 0:01:38]}  Nf5 {[%clk 0:01:44]} 20. Bc1 {[%clk 0:01:35]}  Rab8 {[%clk 0:01:32]} 21. Qa2 {[%clk 0:01:31]}  Qe5 {[%clk 0:01:29]} 22. Re1 {[%clk 0:01:30]}  Qxc3 {[%clk 0:01:22]} 23. Ba3 {[%clk 0:01:28]}  Rfe8 {[%clk 0:01:15]} 24. Bg4 {[%clk 0:01:22]}  Nd4 {[%clk 0:01:09]} 25. Bc5 {[%clk 0:01:06]}  Nxc2 {[%clk 0:00:57]} 26. Rac1 {[%clk 0:00:52]}  Rb2 {[%clk 0:00:53]} 27. Qa1 {[%clk 0:00:53]}  Qxe1+ {[%clk 0:00:41]} 28. Rxe1 {[%clk 0:00:52]}  Nxa1 {[%clk 0:00:41]} 29. Rxa1 {[%clk 0:00:53]} 0-1


[Site "https://www.chess.com"]

[Event "Titled Tuesday Blitz March 14 Late 2023"]
[White "Sakun, Volodymyr"]
[Black "Fernandez Garcia, Gumersindo"]
[WhiteFideId "14114062"]
[BlackFideId "24516740"]
[WhiteElo "2331"]
[BlackElo "2093"]
[Result "1-0"]
[Round "08"]
[TimeControl "180+2"]
[Date "2023.03.14"]
[WhiteClock "0:00:19"]
[BlackClock "0:00:03"]

1. d4 {[%clk 0:03:00]}  Nf6 {[%clk 0:02:58]} 2. c4 {[%clk 0:03:00]}  d6 {[%clk 0:02:58]} 3. g3 {[%clk 0:03:00]}  e5 {[%clk 0:02:55]} 4. Nc3 {[%clk 0:02:57]}  exd4 {[%clk 0:02:50]} 5. Qxd4 {[%clk 0:02:57]}  Nc6 {[%clk 0:02:51]} 6. Qd2 {[%clk 0:02:58]}  Be6 {[%clk 0:02:51]} 7. Nd5 {[%clk 0:02:53]}  Ne5 {[%clk 0:02:41]} 8. b3 {[%clk 0:02:47]}  c6 {[%clk 0:02:39]} 9. Nxf6+ {[%clk 0:02:39]}  Qxf6 {[%clk 0:02:40]} 10. Bb2 {[%clk 0:02:39]}  Qd8 {[%clk 0:02:30]} 11. e4 {[%clk 0:02:34]}  Be7 {[%clk 0:02:29]} 12. f4 {[%clk 0:02:32]}  Ng4 {[%clk 0:02:23]} 13. Bxg7 {[%clk 0:02:29]}  Bf6 {[%clk 0:02:03]} 14. Bxh8 {[%clk 0:02:29]}  Bxh8 {[%clk 0:02:02]} 15. Rd1 {[%clk 0:02:22]}  Qb6 {[%clk 0:02:02]} 16. Nh3 {[%clk 0:01:35]}  Ne3 {[%clk 0:01:55]} 17. c5 {[%clk 0:01:35]}  Qxc5 {[%clk 0:01:49]} 18. Rc1 {[%clk 0:01:35]}  Qb6 {[%clk 0:01:29]} 19. Ng5 {[%clk 0:01:35]}  O-O-O {[%clk 0:01:21]} 20. Nxe6 {[%clk 0:01:31]}  fxe6 {[%clk 0:01:20]} 21. Bh3 {[%clk 0:01:31]}  Kb8 {[%clk 0:01:11]} 22. Ke2 {[%clk 0:01:27]}  Bd4 {[%clk 0:01:07]} 23. Bxe6 {[%clk 0:01:20]}  Re8 {[%clk 0:01:01]} 24. f5 {[%clk 0:01:11]}  d5 {[%clk 0:00:52]} 25. exd5 {[%clk 0:01:04]}  Nxd5 {[%clk 0:00:42]} 26. Kf3 {[%clk 0:00:59]}  Be3 {[%clk 0:00:35]} 27. Qe2 {[%clk 0:00:56]}  Bxc1 {[%clk 0:00:29]} 28. Rxc1 {[%clk 0:00:56]}  Nc7 {[%clk 0:00:24]} 29. Re1 {[%clk 0:00:56]}  Qb4 {[%clk 0:00:22]} 30. Kg2 {[%clk 0:00:51]}  Qd6 {[%clk 0:00:20]} 31. Qe5 {[%clk 0:00:49]}  Qd2+ {[%clk 0:00:19]} 32. Re2 {[%clk 0:00:49]}  Qd8 {[%clk 0:00:18]} 33. Qf4 {[%clk 0:00:45]}  Qf6 {[%clk 0:00:17]} 34. Qd6 {[%clk 0:00:38]}  a6 {[%clk 0:00:16]} 35. Rd2 {[%clk 0:00:29]}  Re7 {[%clk 0:00:15]} 36. a4 {[%clk 0:00:26]}  Ka7 {[%clk 0:00:14]} 37. Re2 {[%clk 0:00:24]}  Nxe6 {[%clk 0:00:06]} 38. fxe6 {[%clk 0:00:21]}  h5 {[%clk 0:00:06]} 39. Qe5 {[%clk 0:00:20]}  Qg6 {[%clk 0:00:04]} 40. Qc5+ {[%clk 0:00:19]}  Ka8 {[%clk 0:00:04]} 41. Qxe7 {[%clk 0:00:19]}  Qd3 {[%clk 0:00:04]} 42. Qf8+ {[%clk 0:00:18]}  Ka7 {[%clk 0:00:05]} 43. Qf2+ {[%clk 0:00:18]}  b6 {[%clk 0:00:03]} 44. e7 {[%clk 0:00:19]} 1-0


[Site "https://www.chess.com"]

[Event "Titled Tuesday Blitz March 14 Late 2023"]
[White "Priasmoro, Novendra"]
[Black "Golubev, Mikhail"]
[WhiteFideId "7105029"]
[BlackFideId "14100983"]
[WhiteElo "2412"]
[BlackElo "2374"]
[Result "1-0"]
[Round "08"]
[TimeControl "180+2"]
[Date "2023.03.14"]
[WhiteClock "0:00:35"]
[BlackClock "0:00:01"]

1. e4 {[%clk 0:02:15]}  c5 {[%clk 0:02:58]} 2. Nf3 {[%clk 0:02:14]}  d6 {[%clk 0:02:58]} 3. d4 {[%clk 0:02:12]}  Nf6 {[%clk 0:02:57]} 4. Nc3 {[%clk 0:02:12]}  cxd4 {[%clk 0:02:57]} 5. Nxd4 {[%clk 0:02:13]}  g6 {[%clk 0:02:57]} 6. Be3 {[%clk 0:02:12]}  Bg7 {[%clk 0:02:57]} 7. f3 {[%clk 0:02:13]}  a6 {[%clk 0:02:56]} 8. Qd2 {[%clk 0:02:13]}  h5 {[%clk 0:02:56]} 9. O-O-O {[%clk 0:02:12]}  Nbd7 {[%clk 0:02:55]} 10. Nb3 {[%clk 0:02:10]}  Qc7 {[%clk 0:02:35]} 11. Kb1 {[%clk 0:02:09]}  O-O {[%clk 0:02:23]} 12. h4 {[%clk 0:02:03]}  Ne5 {[%clk 0:02:23]} 13. Bh6 {[%clk 0:02:01]}  Be6 {[%clk 0:02:16]} 14. Nd4 {[%clk 0:01:53]}  Nc4 {[%clk 0:02:00]} 15. Bxc4 {[%clk 0:01:39]}  Qxc4 {[%clk 0:02:00]} 16. Bxg7 {[%clk 0:01:35]}  Kxg7 {[%clk 0:01:59]} 17. b3 {[%clk 0:01:27]}  Qc5 {[%clk 0:01:59]} 18. Nxe6+ {[%clk 0:01:23]}  fxe6 {[%clk 0:01:58]} 19. Qd4 {[%clk 0:01:24]}  Qxd4 {[%clk 0:01:53]} 20. Rxd4 {[%clk 0:01:25]}  Rac8 {[%clk 0:01:53]} 21. Ne2 {[%clk 0:01:25]}  Nd7 {[%clk 0:01:47]} 22. Rd2 {[%clk 0:01:24]}  b5 {[%clk 0:01:40]} 23. Nd4 {[%clk 0:01:24]}  Kf7 {[%clk 0:01:40]} 24. g4 {[%clk 0:01:21]}  hxg4 {[%clk 0:01:27]} 25. fxg4 {[%clk 0:01:22]}  e5 {[%clk 0:01:27]} 26. Nf3 {[%clk 0:01:17]}  Kg8 {[%clk 0:01:11]} 27. Ng5 {[%clk 0:01:17]}  Rf4 {[%clk 0:01:10]} 28. Rg2 {[%clk 0:01:12]}  Nf6 {[%clk 0:01:08]} 29. h5 {[%clk 0:01:09]}  Rxg4 {[%clk 0:00:27]} 30. Rxg4 {[%clk 0:01:07]}  Nxg4 {[%clk 0:00:28]} 31. hxg6 {[%clk 0:01:03]}  Kg7 {[%clk 0:00:23]} 32. Rg1 {[%clk 0:01:01]}  Nf6 {[%clk 0:00:16]} 33. Ne6+ {[%clk 0:01:01]}  Kg8 {[%clk 0:00:16]} 34. Rh1 {[%clk 0:00:54]}  Nxe4 {[%clk 0:00:09]} 35. Rh7 {[%clk 0:00:54]}  Re8 {[%clk 0:00:06]} 36. Nc7 {[%clk 0:00:45]}  Rf8 {[%clk 0:00:06]} 37. Rxe7 {[%clk 0:00:45]}  Rf1+ {[%clk 0:00:05]} 38. Kb2 {[%clk 0:00:45]}  Nc5 {[%clk 0:00:05]} 39. Nd5 {[%clk 0:00:37]}  e4 {[%clk 0:00:05]} 40. Rh7 {[%clk 0:00:33]}  Rf2 {[%clk 0:00:05]} 41. Ne7+ {[%clk 0:00:33]}  Kf8 {[%clk 0:00:05]} 42. g7+ {[%clk 0:00:34]}  Kf7 {[%clk 0:00:01]} 43. g8=Q+ {[%clk 0:00:35]} 1-0


[Site "https://www.chess.com"]

[Event "Titled Tuesday Blitz March 14 Late 2023"]
[White "Thomforde-Toates, Noah"]
[Black "Urbina Perez, Juan Antonio"]
[WhiteFideId "30951992"]
[BlackFideId "2217368"]
[WhiteElo "2627"]
[BlackElo "2197"]
[Result "1-0"]
[Round "08"]
[TimeControl "180+2"]
[Date "2023.03.14"]
[WhiteClock "0:00:11"]
[BlackClock "0:00:01"]

1. c4 {[%clk 0:03:00]}  c6 {[%clk 0:02:59]} 2. Nf3 {[%clk 0:02:56]}  d5 {[%clk 0:02:59]} 3. b3 {[%clk 0:02:53]}  Nf6 {[%clk 0:02:57]} 4. Bb2 {[%clk 0:02:53]}  Bf5 {[%clk 0:02:58]} 5. e3 {[%clk 0:02:53]}  e6 {[%clk 0:02:58]} 6. Nc3 {[%clk 0:02:52]}  Nbd7 {[%clk 0:02:57]} 7. Be2 {[%clk 0:02:53]}  Bd6 {[%clk 0:02:57]} 8. h3 {[%clk 0:02:50]}  Qe7 {[%clk 0:02:57]} 9. Rc1 {[%clk 0:02:48]}  Ba3 {[%clk 0:02:55]} 10. Bxa3 {[%clk 0:02:46]}  Qxa3 {[%clk 0:02:56]} 11. d4 {[%clk 0:02:45]}  h6 {[%clk 0:02:56]} 12. Qd2 {[%clk 0:02:42]}  Ne4 {[%clk 0:02:53]} 13. Nxe4 {[%clk 0:02:41]}  Bxe4 {[%clk 0:02:54]} 14. c5 {[%clk 0:02:36]}  O-O {[%clk 0:02:32]} 15. O-O {[%clk 0:02:29]}  Bxf3 {[%clk 0:02:28]} 16. Bxf3 {[%clk 0:02:30]}  e5 {[%clk 0:02:28]} 17. dxe5 {[%clk 0:02:22]}  Nxc5 {[%clk 0:02:15]} 18. Bg4 {[%clk 0:02:14]}  Rfe8 {[%clk 0:02:13]} 19. f4 {[%clk 0:02:14]}  Ne4 {[%clk 0:02:08]} 20. Qc2 {[%clk 0:02:02]}  f6 {[%clk 0:01:55]} 21. Bf5 {[%clk 0:01:43]}  fxe5 {[%clk 0:01:52]} 22. Bxe4 {[%clk 0:01:42]}  dxe4 {[%clk 0:01:53]} 23. f5 {[%clk 0:01:43]}  Qd6 {[%clk 0:01:33]} 24. f6 {[%clk 0:01:19]}  Rf8 {[%clk 0:01:32]} 25. Qc4+ {[%clk 0:01:12]}  Qd5 {[%clk 0:01:27]} 26. fxg7 {[%clk 0:00:54]}  Kxg7 {[%clk 0:01:21]} 27. Qe2 {[%clk 0:00:52]}  Qe6 {[%clk 0:01:15]} 28. Qh5 {[%clk 0:00:47]}  Rxf1+ {[%clk 0:01:08]} 29. Rxf1 {[%clk 0:00:47]}  Rf8 {[%clk 0:01:09]} 30. Rxf8 {[%clk 0:00:37]}  Kxf8 {[%clk 0:01:10]} 31. Qh4 {[%clk 0:00:38]}  Kg7 {[%clk 0:00:41]} 32. Qxe4 {[%clk 0:00:37]}  a6 {[%clk 0:00:31]} 33. Qb4 {[%clk 0:00:32]}  b5 {[%clk 0:00:26]} 34. Qc5 {[%clk 0:00:32]}  Qd5 {[%clk 0:00:27]} 35. Qa7+ {[%clk 0:00:29]}  Kg6 {[%clk 0:00:26]} 36. Qxa6 {[%clk 0:00:29]}  Kf5 {[%clk 0:00:26]} 37. Qb7 {[%clk 0:00:22]}  Ke4 {[%clk 0:00:23]} 38. Qh7+ {[%clk 0:00:21]}  Kxe3 {[%clk 0:00:23]} 39. Qxh6+ {[%clk 0:00:22]}  Ke2 {[%clk 0:00:21]} 40. Qh5+ {[%clk 0:00:20]}  Ke1 {[%clk 0:00:18]} 41. Qh4+ {[%clk 0:00:20]}  Ke2 {[%clk 0:00:18]} 42. Qf2+ {[%clk 0:00:20]}  Kd3 {[%clk 0:00:17]} 43. Qf3+ {[%clk 0:00:19]}  Qxf3 {[%clk 0:00:14]} 44. gxf3 {[%clk 0:00:20]}  Ke3 {[%clk 0:00:14]} 45. h4 {[%clk 0:00:19]}  c5 {[%clk 0:00:09]} 46. Kf1 {[%clk 0:00:14]}  Kd2 {[%clk 0:00:05]} 47. h5 {[%clk 0:00:14]}  c4 {[%clk 0:00:06]} 48. bxc4 {[%clk 0:00:12]}  bxc4 {[%clk 0:00:07]} 49. h6 {[%clk 0:00:13]}  c3 {[%clk 0:00:07]} 50. h7 {[%clk 0:00:13]}  c2 {[%clk 0:00:08]} 51. h8=Q {[%clk 0:00:14]}  c1=Q+ {[%clk 0:00:09]} 52. Kg2 {[%clk 0:00:14]}  Qe1 {[%clk 0:00:05]} 53. Qd8+ {[%clk 0:00:13]}  Kc2 {[%clk 0:00:05]} 54. Qc7+ {[%clk 0:00:12]}  Kb2 {[%clk 0:00:04]} 55. Qc4 {[%clk 0:00:11]}  Qd2+ {[%clk 0:00:02]} 56. Kf1 {[%clk 0:00:11]}  Qd1+ {[%clk 0:00:01]} 57. Kf2 {[%clk 0:00:11]} 1-0


[Site "https://www.chess.com"]

[Event "Titled Tuesday Blitz March 14 Late 2023"]
[White "Rangel, Daniel"]
[Black "O`Gorman, Tom"]
[WhiteFideId "2124475"]
[BlackFideId "2508249"]
[WhiteElo "2256"]
[BlackElo "2271"]
[Result "0-1"]
[Round "08"]
[TimeControl "180+2"]
[Date "2023.03.14"]
[WhiteClock "0:00:03"]
[BlackClock "0:01:01"]

1. c4 {[%clk 0:02:59]}  e6 {[%clk 0:02:56]} 2. g3 {[%clk 0:02:58]}  d5 {[%clk 0:02:56]} 3. Bg2 {[%clk 0:02:58]}  Nf6 {[%clk 0:02:55]} 4. Nf3 {[%clk 0:02:58]}  d4 {[%clk 0:02:50]} 5. O-O {[%clk 0:02:58]}  c5 {[%clk 0:02:50]} 6. d3 {[%clk 0:02:58]}  Nc6 {[%clk 0:02:50]} 7. e3 {[%clk 0:02:58]}  Be7 {[%clk 0:02:48]} 8. exd4 {[%clk 0:02:59]}  cxd4 {[%clk 0:02:49]} 9. Bf4 {[%clk 0:02:59]}  O-O {[%clk 0:02:48]} 10. Ne5 {[%clk 0:02:59]}  Nxe5 {[%clk 0:02:42]} 11. Bxe5 {[%clk 0:02:59]}  Qb6 {[%clk 0:02:41]} 12. Na3 {[%clk 0:02:20]}  Nd7 {[%clk 0:02:33]} 13. Bf4 {[%clk 0:02:18]}  e5 {[%clk 0:02:25]} 14. Bc1 {[%clk 0:02:16]}  Nc5 {[%clk 0:02:23]} 15. Re1 {[%clk 0:02:10]}  Bf6 {[%clk 0:02:17]} 16. Nc2 {[%clk 0:02:07]}  Bf5 {[%clk 0:02:13]} 17. Bf1 {[%clk 0:02:08]}  a5 {[%clk 0:02:12]} 18. Na3 {[%clk 0:01:58]}  Rfe8 {[%clk 0:02:04]} 19. Nb5 {[%clk 0:01:55]}  g6 {[%clk 0:02:03]} 20. b3 {[%clk 0:01:48]}  Rad8 {[%clk 0:02:02]} 21. Ba3 {[%clk 0:01:44]}  e4 {[%clk 0:01:58]} 22. Bxc5 {[%clk 0:01:43]}  Qxc5 {[%clk 0:01:58]} 23. dxe4 {[%clk 0:01:44]}  Bxe4 {[%clk 0:01:57]} 24. Bg2 {[%clk 0:01:29]}  Bxg2 {[%clk 0:01:52]} 25. Kxg2 {[%clk 0:01:28]}  d3 {[%clk 0:01:35]} 26. Rb1 {[%clk 0:01:08]}  Rxe1 {[%clk 0:01:28]} 27. Qxe1 {[%clk 0:01:09]}  Qc6+ {[%clk 0:01:26]} 28. Kg1 {[%clk 0:01:06]}  Re8 {[%clk 0:01:20]} 29. Qd2 {[%clk 0:01:01]}  Qf3 {[%clk 0:01:19]} 30. Qd1 {[%clk 0:00:37]}  Re2 {[%clk 0:01:15]} 31. Qf1 {[%clk 0:00:21]}  d2 {[%clk 0:01:07]} 32. Rd1 {[%clk 0:00:18]}  Qe4 {[%clk 0:01:05]} 33. Nd6 {[%clk 0:00:10]}  Qe6 {[%clk 0:01:03]} 34. Ne8 {[%clk 0:00:03]}  Qxe8 {[%clk 0:01:01]} 0-1


[Site "https://www.chess.com"]

[Event "Titled Tuesday Blitz March 14 Late 2023"]
[White "Filgueira, Hernan"]
[Black "Goncalves, Davi Sulzbacher"]
[WhiteFideId "101770"]
[BlackFideId "2154510"]
[WhiteElo "2363"]
[BlackElo "2182"]
[Result "1-0"]
[Round "08"]
[TimeControl "180+2"]
[Date "2023.03.14"]
[WhiteClock "0:01:13"]
[BlackClock "0:00:01"]

1. c4 {[%clk 0:02:58]}  Nf6 {[%clk 0:02:59]} 2. Nc3 {[%clk 0:02:58]}  e5 {[%clk 0:02:58]} 3. Nf3 {[%clk 0:02:57]}  Nc6 {[%clk 0:02:54]} 4. a3 {[%clk 0:02:57]}  Be7 {[%clk 0:02:52]} 5. d3 {[%clk 0:02:55]}  O-O {[%clk 0:02:52]} 6. e3 {[%clk 0:02:55]}  d6 {[%clk 0:02:40]} 7. Qc2 {[%clk 0:02:54]}  Bg4 {[%clk 0:02:35]} 8. Be2 {[%clk 0:02:53]}  a6 {[%clk 0:02:33]} 9. h3 {[%clk 0:02:50]}  Bh5 {[%clk 0:02:33]} 10. g4 {[%clk 0:02:50]}  Bg6 {[%clk 0:02:33]} 11. Nh4 {[%clk 0:02:50]}  d5 {[%clk 0:02:29]} 12. Nxg6 {[%clk 0:02:44]}  fxg6 {[%clk 0:02:19]} 13. cxd5 {[%clk 0:02:41]}  Na7 {[%clk 0:02:03]} 14. Bf3 {[%clk 0:02:37]}  Nd7 {[%clk 0:01:44]} 15. Bg2 {[%clk 0:02:35]}  Nb5 {[%clk 0:01:12]} 16. Ne4 {[%clk 0:02:25]}  Nd6 {[%clk 0:01:08]} 17. Bd2 {[%clk 0:02:06]}  Nxe4 {[%clk 0:01:08]} 18. Bxe4 {[%clk 0:01:59]}  Bh4 {[%clk 0:00:57]} 19. Rf1 {[%clk 0:01:58]}  Rxf2 {[%clk 0:00:38]} 20. Rxf2 {[%clk 0:01:56]}  Qf6 {[%clk 0:00:39]} 21. O-O-O {[%clk 0:01:38]}  Qxf2 {[%clk 0:00:26]} 22. Qxc7 {[%clk 0:01:35]}  Nf6 {[%clk 0:00:17]} 23. Bh1 {[%clk 0:01:20]}  Rf8 {[%clk 0:00:07]} 24. d6 {[%clk 0:01:18]}  Bg5 {[%clk 0:00:01]} 25. Re1 {[%clk 0:01:15]}  Bxe3 {[%clk 0:00:01]} 26. Rxe3 {[%clk 0:01:14]}  Qg1+ {[%clk 0:00:01]} 27. Re1 {[%clk 0:01:14]}  Qb6 {[%clk 0:00:01]} 28. Qxb6 {[%clk 0:01:13]} 1-0


[Site "https://www.chess.com"]